lending/lending_fUSD_20250719
["ID","MTS","AMOUNT","RATE_DAILY","PERIOD"]
[373338857,1752953446168,-2355.9,0.00017,2]
[373338858,1752953446273,-12580.9022394,0.00017,2]
[373338859,1752953446284,-500.0,0.00017,2]
[373338860,1752953446294,-570.47392722,0.00017,2]
[373338861,1752953446304,-313.1864304,0.00017,2]
[373338862,1752953446314,-500.0,0.00017,2]
[373338863,1752953446323,-485.22535037,0.00017203,2]
[373338864,1752953446333,-516.0,0.00017404,2]
[373338865,1752953446342,-151.0,0.00017443,2]
[373338866,1752953446354,-150.0,0.000175,2]
[373338867,1752953446363,-485.22535037,0.00017506,2]
[373338868,1752953446373,-516.84496904,0.00017558,2]
[373338869,1752953446383,-1444.5,0.00017678,2]
[373338870,1752953446392,-485.22535037,0.00017809,2]
[373338871,1752953446401,-151.75,0.00017828,2]
[373338872,1752953446411,-360.21,0.00017962,2]
[373338873,1752953446420,-196.98,0.00018154,2]
[373338874,1752953446429,-2088.0,0.00018164,2]
[373338875,1752953446438,-666.0,0.00018222,2]
[373338876,1752953446447,-1000.0,0.00018316,2]
[373338877,1752953446458,-21582.63,0.00018366,2]
[373338878,1752953446467,-5439.55,0.00018454,2]
[373338879,1752953446477,-7142.856,0.00018487,2]
[373338880,1752953446486,-207.4,0.00018487,2]
[373338881,1752953446496,-168.0,0.00018541,2]
[373338882,1752953446506,-249.24411324,0.00018582,2]
[373338883,1752953446515,-168.0,0.0001859,2]
[373338884,1752953446525,-168.0,0.00018591,2]
[373338885,1752953446536,-156.63,0.00018649,2]
[373338886,1752953446545,-1680.0,0.00018659,2]
[373338887,1752953446554,-151.75,0.00018719,2]
[373338888,1752953446564,-150.0,0.0001878,2]
[373338889,1752953446574,-294.0,0.00018904,2]
[373338890,1752953446584,-7407.141672,0.00019035,2]
[373338892,1752953446594,-168.39737996,0.00019039,2]
[373338894,1752953446603,-537.87741004,0.00019075,2]
[373338896,1752953446612,-656.24661657,0.00019078,2]
[373338898,1752953446622,-153.2556658,0.00019078,2]
[373338900,1752953446631,-520.5633,0.00019078,2]
[373338902,1752953446640,-13998.71,0.0001908,2]
[373338904,1752953446650,-13998.7,0.00019097,2]
[373338905,1752953446660,-6000.0,0.000191,2]
[373338906,1752953446670,-27417.66806739,0.000191,2]
[373338907,1752953446686,-791.650765,0.00019103,2]
[373338908,1752953446696,-656.24661654,0.00019139,2]
[373338909,1752953446706,-346.92554585,0.00019166,2]
[373338910,1752953446716,-500.0,0.00019173,2]
[373338911,1752953446725,-173.04252044,0.00019177,2]
[373338912,1752953446735,-480.0,0.00019178,2]
[373338913,1752953446744,-480.0,0.00019178,2]
[373338914,1752953446753,-480.0,0.00019178,2]
[373338915,1752953446763,-369.90269041,0.00019178,2]
[373338916,1752953446773,-480.0,0.00019178,2]
[373338917,1752953446783,-460.0,0.00019178,2]
[373338918,1752953446792,-460.0,0.00019178,2]
[373338919,1752953446801,-460.0,0.00019178,2]
[373338920,1752953446810,-294.68898149,0.00019178,2]
[373338921,1752953446820,-480.0,0.00019178,2]
[373338922,1752953446831,-1050.031469,0.00019178,2]
[373338923,1752953446842,-1069.223999,0.00019178,2]
[373338924,1752953446852,-480.0,0.00019178,2]
[373338925,1752953446862,-480.0,0.00019178,2]
[373338926,1752953446872,-460.0,0.00019178,2]
[373338927,1752953446882,-400.0,0.00019178,2]
[373338928,1752953446891,-480.0,0.00019178,2]
[373338929,1752953446900,-480.0,0.00019178,2]
[373338930,1752953446910,-480.0,0.00019178,2]
[373338931,1752953446920,-480.0,0.00019178,2]
[373338932,1752953446930,-480.0,0.00019178,2]
[373338933,1752953446941,-480.0,0.00019178,2]
[373338934,1752953446951,-480.0,0.00019178,2]
[373338935,1752953446961,-480.0,0.00019178,2]
[373338936,1752953446971,-480.0,0.00019178,2]
[373338937,1752953446981,-480.0,0.00019178,2]
[373338938,1752953446990,-480.0,0.00019178,2]
[373338939,1752953446999,-480.0,0.00019178,2]
[373338940,1752953447014,-480.0,0.00019178,2]
[373338941,1752953447027,-315.00012661,0.00019178,2]
[373338942,1752953447038,-460.0,0.00019178,2]
[373338943,1752953447047,-460.0,0.00019178,2]
[373338944,1752953447059,-480.0,0.00019178,2]
[373338945,1752953447069,-480.0,0.00019178,2]
[373338946,1752953447080,-480.0,0.00019178,2]
[373338947,1752953447092,-480.0,0.00019178,2]
[373338948,1752953447103,-480.0,0.00019178,2]
[373338949,1752953447115,-480.0,0.00019178,2]
[373338950,1752953447126,-460.0,0.00019178,2]
[373338951,1752953447136,-460.0,0.00019178,2]
[373338952,1752953447145,-480.0,0.00019178,2]
[373338953,1752953447155,-480.0,0.00019178,2]
[373338954,1752953447165,-241.01,0.00019178,2]
[373338955,1752953447178,-480.0,0.00019178,2]
[373338956,1752953447188,-480.0,0.00019178,2]
[373338957,1752953447198,-480.0,0.00019178,2]
[373338958,1752953447208,-480.0,0.00019178,2]
[373338959,1752953447218,-512.98577631,0.00019178,2]
[373338960,1752953447227,-480.0,0.00019178,2]
[373338961,1752953447237,-480.0,0.00019178,2]
[373338962,1752953447248,-480.0,0.00019178,2]
[373338963,1752953447261,-460.0,0.00019178,2]
[373338964,1752953447270,-480.0,0.00019178,2]
[373338965,1752953447280,-480.0,0.00019178,2]
[373338966,1752953447290,-336.39857013,0.00019178,2]
[373338967,1752953447299,-288.1080925,0.00019178,2]
[373338968,1752953447309,-480.0,0.00019178,2]
[373338969,1752953447318,-460.0,0.00019178,2]
[373338970,1752953447328,-480.0,0.00019178,2]
[373338971,1752953447338,-480.0,0.00019178,2]
[373338972,1752953447347,-480.0,0.00019178,2]
[373338973,1752953447357,-480.0,0.00019178,2]
[373338974,1752953447368,-480.0,0.00019178,2]
[373338975,1752953447378,-480.0,0.00019178,2]
[373338976,1752953447388,-460.0,0.00019178,2]
[373338977,1752953447398,-480.0,0.00019178,2]
[373338978,1752953447408,-480.0,0.00019178,2]
[373338979,1752953447428,-480.0,0.00019178,2]
[373338980,1752953447438,-480.0,0.00019178,2]
[373338981,1752953447447,-480.0,0.00019178,2]
[373338982,1752953447457,-480.0,0.00019178,2]
[373338983,1752953447467,-480.0,0.00019178,2]
[373338984,1752953447479,-480.0,0.00019178,2]
[373338985,1752953447489,-480.0,0.00019178,2]
[373338986,1752953447498,-460.0,0.00019178,2]
[373338987,1752953447507,-318.88,0.00019178,2]
[373338988,1752953447517,-480.0,0.00019178,2]
[373338989,1752953447526,-480.0,0.00019178,2]
[373338990,1752953447538,-480.0,0.00019178,2]
[373338991,1752953447547,-460.0,0.00019178,2]
[373338992,1752953447556,-480.0,0.00019178,2]
[373338993,1752953447565,-480.0,0.00019178,2]
[373338994,1752953447576,-480.0,0.00019178,2]
[373338995,1752953447586,-480.0,0.00019178,2]
[373338996,1752953447595,-480.0,0.00019178,2]
[373338997,1752953447605,-480.0,0.00019178,2]
[373338998,1752953447615,-520.12,0.00019178,2]
[373338999,1752953447625,-340.0,0.00019178,2]
[373339000,1752953447634,-480.0,0.00019178,2]
[373339001,1752953447644,-480.0,0.00019178,2]
[373339002,1752953447654,-340.0,0.00019178,2]
[373339003,1752953447664,-480.0,0.00019178,2]
[373339004,1752953447674,-480.0,0.00019178,2]
[373339005,1752953447684,-480.0,0.00019178,2]
[373339006,1752953447694,-480.0,0.00019178,2]
[373339007,1752953447703,-480.0,0.00019178,2]
[373339008,1752953447712,-480.0,0.00019178,2]
[373339009,1752953447722,-480.0,0.00019178,2]
[373339010,1752953447731,-480.0,0.00019178,2]
[373339011,1752953447742,-480.0,0.00019178,2]
[373339012,1752953447752,-480.0,0.00019178,2]
[373339013,1752953447761,-480.0,0.00019178,2]
[373339014,1752953447771,-480.0,0.00019178,2]
[373339015,1752953447781,-500.0,0.00019178,2]
[373339016,1752953447791,-480.0,0.00019178,2]
[373339017,1752953447800,-480.0,0.00019178,2]
[373339018,1752953447810,-480.0,0.00019178,2]
[373339019,1752953447819,-500.0,0.00019178,2]
[373339020,1752953447830,-480.0,0.00019178,2]
[373339021,1752953447840,-480.0,0.00019178,2]
[373339022,1752953447849,-480.0,0.00019178,2]
[373339023,1752953447859,-480.0,0.00019178,2]
[373339024,1752953447869,-461.5002841,0.00019178,2]
[373339025,1752953447878,-843.57,0.00019178,2]
[373339026,1752953448156,-480.0,0.00019178,2]
[373339027,1752953448167,-460.0,0.00019178,2]
[373339028,1752953448176,-480.0,0.00019178,2]
[373339029,1752953448187,-480.0,0.00019178,2]
[373339030,1752953448196,-480.0,0.00019178,2]
[373339031,1752953448206,-604.84,0.00019178,2]
[373339032,1752953448216,-480.0,0.00019178,2]
[373339033,1752953448226,-480.0,0.00019178,2]
[373339034,1752953448236,-480.0,0.00019178,2]
[373339035,1752953448247,-480.0,0.00019178,2]
[373339036,1752953448256,-480.0,0.00019178,2]
[373339037,1752953448266,-516.91,0.00019178,2]
[373339038,1752953448276,-480.0,0.00019178,2]
[373339039,1752953448287,-480.0,0.00019178,2]
[373339040,1752953448296,-480.0,0.00019178,2]
[373339041,1752953448306,-480.0,0.00019178,2]
[373339042,1752953448317,-615.39,0.00019178,2]
[373339043,1752953448326,-480.0,0.00019178,2]
[373339044,1752953448336,-501.85,0.00019178,2]
[373339045,1752953448346,-480.0,0.00019178,2]
[373339046,1752953448355,-480.0,0.00019178,2]
[373339047,1752953448365,-512.01,0.00019178,2]
[373339048,1752953448374,-480.0,0.00019178,2]
[373339049,1752953448384,-480.0,0.00019178,2]
[373339050,1752953448393,-480.0,0.00019178,2]
[373339051,1752953448403,-460.0,0.00019178,2]
[373339052,1752953448413,-480.0,0.00019178,2]
[373339053,1752953448422,-721.27,0.00019178,2]
[373339054,1752953448431,-480.0,0.00019178,2]
[373339055,1752953448441,-480.0,0.00019178,2]
[373339056,1752953448450,-480.0,0.00019178,2]
[373339057,1752953448460,-480.0,0.00019178,2]
[373339058,1752953448470,-480.0,0.00019178,2]
[373339059,1752953448479,-480.0,0.00019178,2]
[373339060,1752953448489,-950.65,0.00019178,2]
[373339061,1752953448499,-420.0,0.00019178,2]
[373339062,1752953448509,-480.0,0.00019178,2]
[373339063,1752953448518,-480.0,0.00019178,2]
[373339064,1752953448528,-480.0,0.00019178,2]
[373339065,1752953448539,-480.0,0.00019178,2]
[373339066,1752953448549,-480.0,0.00019178,2]
[373339067,1752953448558,-538.53,0.00019178,2]
[373339068,1752953448568,-480.0,0.00019178,2]
[373339069,1752953448578,-1018.28,0.00019178,2]
[373339070,1752953448587,-480.0,0.00019178,2]
[373339071,1752953448597,-480.0,0.00019178,2]
[373339072,1752953448606,-480.0,0.00019178,2]
[373339073,1752953448616,-480.0,0.00019178,2]
[373339074,1752953448625,-480.0,0.00019178,2]
[373339075,1752953448634,-480.0,0.00019178,2]
[373339076,1752953448643,-555.68,0.00019178,2]
[373339077,1752953448653,-480.0,0.00019178,2]
[373339078,1752953448662,-480.0,0.00019178,2]
[373339079,1752953448671,-480.0,0.00019178,2]
[373339080,1752953448680,-480.0,0.00019178,2]
[373339081,1752953448690,-162.326343,0.00019178,2]
[373339082,1752953448699,-480.0,0.00019178,2]
[373339083,1752953448709,-480.0,0.00019178,2]
[373339084,1752953448718,-480.0,0.00019178,2]
[373339085,1752953448731,-160.638319,0.00019178,2]
[373339086,1752953448740,-480.0,0.00019178,2]
[373339087,1752953448749,-480.0,0.00019178,2]
[373339088,1752953448759,-480.0,0.00019178,2]
[373339089,1752953448768,-480.0,0.00019178,2]
[373339090,1752953448778,-300.0,0.00019178,2]
[373339091,1752953448789,-480.0,0.00019178,2]
[373339092,1752953448799,-480.0,0.00019178,2]
[373339093,1752953448808,-480.0,0.00019178,2]
[373339094,1752953448817,-480.0,0.00019178,2]
[373339095,1752953448827,-692.31,0.00019178,2]
[373339096,1752953448836,-480.0,0.00019178,2]
[373339097,1752953448845,-998.34,0.00019178,2]
[373339098,1752953448855,-480.0,0.00019178,2]
[373339099,1752953448865,-480.0,0.00019178,2]
[373339100,1752953448875,-480.0,0.00019178,2]
[373339101,1752953448884,-480.0,0.00019178,2]
[373339102,1752953448894,-480.0,0.00019178,2]
[373339103,1752953448904,-480.0,0.00019178,2]
[373339104,1752953448913,-717.67,0.00019178,2]
[373339105,1752953448922,-480.0,0.00019178,2]
[373339106,1752953448931,-480.0,0.00019178,2]
[373339107,1752953448942,-480.0,0.00019178,2]
[373339108,1752953448951,-480.0,0.00019178,2]
[373339109,1752953448960,-480.0,0.00019178,2]
[373339110,1752953448970,-569.46,0.00019178,2]
[373339111,1752953448980,-663.07,0.00019178,2]
[373339112,1752953448989,-480.0,0.00019178,2]
[373339113,1752953448999,-710.11,0.00019178,2]
[373339114,1752953449009,-521.57,0.00019178,2]
[373339115,1752953449023,-578.0416697,0.00019178,2]
[373339116,1752953449033,-480.0,0.00019178,2]
[373339117,1752953449043,-480.0,0.00019178,2]
[373339118,1752953449052,-480.0,0.00019178,2]
[373339119,1752953449062,-480.0,0.00019178,2]
[373339120,1752953449072,-480.0,0.00019178,2]
[373339121,1752953449081,-480.0,0.00019178,2]
[373339122,1752953449091,-480.0,0.00019178,2]
[373339123,1752953449101,-480.0,0.00019178,2]
[373339124,1752953449111,-480.0,0.00019178,2]
[373339125,1752953449120,-480.0,0.00019178,2]
[373339126,1752953449129,-1141.53,0.00019178,2]
[373339127,1752953449139,-565.4,0.00019178,2]
[373339128,1752953449149,-625.15,0.00019178,2]
[373339129,1752953449159,-480.0,0.00019178,2]
[373339130,1752953449168,-480.0,0.00019178,2]
[373339131,1752953449179,-480.0,0.00019178,2]
[373339132,1752953449188,-480.0,0.00019178,2]
[373339133,1752953449199,-480.0,0.00019178,2]
[373339134,1752953449208,-480.0,0.00019178,2]
[373339135,1752953449218,-480.0,0.00019178,2]
[373339136,1752953449228,-480.0,0.00019178,2]
[373339137,1752953449237,-480.0,0.00019178,2]
[373339138,1752953449247,-480.0,0.00019178,2]
[373339139,1752953449257,-500.0,0.00019178,2]
[373339140,1752953449267,-480.0,0.00019178,2]
[373339141,1752953449276,-480.0,0.00019178,2]
[373339142,1752953449287,-480.0,0.00019178,2]
[373339143,1752953449297,-480.0,0.00019178,2]
[373339144,1752953449307,-480.0,0.00019178,2]
[373339145,1752953449316,-480.0,0.00019178,2]
[373339146,1752953449325,-480.0,0.00019178,2]
[373339147,1752953449335,-480.0,0.00019178,2]
[373339148,1752953449345,-480.0,0.00019178,2]
[373339149,1752953449355,-591.67,0.00019178,2]
[373339150,1752953449364,-480.0,0.00019178,2]
[373339151,1752953449374,-480.0,0.00019178,2]
[373339152,1752953449384,-480.0,0.00019178,2]
[373339153,1752953449394,-480.0,0.00019178,2]
[373339154,1752953449404,-630.53,0.00019178,2]
[373339155,1752953449414,-480.0,0.00019178,2]
[373339156,1752953449424,-480.0,0.00019178,2]
[373339157,1752953449434,-480.0,0.00019178,2]
[373339158,1752953449443,-480.0,0.00019178,2]
[373339159,1752953449453,-480.0,0.00019178,2]
[373339160,1752953449462,-480.0,0.00019178,2]
[373339161,1752953449472,-592.79,0.00019178,2]
[373339162,1752953449481,-480.0,0.00019178,2]
[373339163,1752953449491,-714.32,0.00019178,2]
[373339164,1752953449500,-480.0,0.00019178,2]
[373339165,1752953449510,-480.0,0.00019178,2]
[373339166,1752953449520,-480.0,0.00019178,2]
[373339167,1752953449530,-480.0,0.00019178,2]
[373339168,1752953449540,-153.21,0.00019178,2]
[373339169,1752953449549,-480.0,0.00019178,2]
[373339170,1752953449558,-460.0,0.00019178,2]
[373339171,1752953449567,-480.0,0.00019178,2]
[373339172,1752953449577,-716.62,0.00019178,2]
[373339173,1752953449587,-480.0,0.00019178,2]
[373339174,1752953449596,-480.0,0.00019178,2]
[373339175,1752953449605,-480.0,0.00019178,2]
[373339176,1752953449614,-480.0,0.00019178,2]
[373339177,1752953449623,-480.0,0.00019178,2]
[373339178,1752953449634,-213.28414914,0.00019178,2]
[373339179,1752953449643,-480.0,0.00019178,2]
[373339180,1752953449652,-572.39,0.00019178,2]
[373339181,1752953449662,-822.74,0.00019178,2]
[373339182,1752953449671,-480.0,0.00019178,2]
[373339183,1752953449680,-480.0,0.00019178,2]
[373339184,1752953449690,-480.0,0.00019178,2]
[373339185,1752953449699,-480.0,0.00019178,2]
[373339186,1752953449709,-480.0,0.00019178,2]
[373339187,1752953449718,-480.0,0.00019178,2]
[373339188,1752953449728,-480.0,0.00019178,2]
[373339189,1752953449737,-480.0,0.00019178,2]
[373339190,1752953449746,-556.85,0.00019178,2]
[373339191,1752953449755,-480.0,0.00019178,2]
[373339192,1752953449765,-480.0,0.00019178,2]
[373339193,1752953449774,-480.0,0.00019178,2]
[373339194,1752953449784,-306.80077235,0.00019178,2]
[373339195,1752953449792,-480.0,0.00019178,2]
[373339196,1752953449801,-480.0,0.00019178,2]
[373339197,1752953449810,-480.0,0.00019178,2]
[373339198,1752953449819,-480.0,0.00019178,2]
[373339199,1752953449828,-480.0,0.00019178,2]
[373339200,1752953449837,-480.0,0.00019178,2]
[373339201,1752953449847,-460.0,0.00019178,2]
[373339202,1752953449856,-768.15,0.00019178,2]
[373339203,1752953449865,-480.0,0.00019178,2]
[373339204,1752953449874,-542.65,0.00019178,2]
[373339205,1752953449883,-480.0,0.00019178,2]
[373339206,1752953449893,-480.0,0.00019178,2]
[373339207,1752953449902,-566.94410298,0.00019178,2]
[373339208,1752953449912,-480.0,0.00019178,2]
[373339209,1752953449921,-480.0,0.00019178,2]
[373339210,1752953449930,-480.0,0.00019178,2]
[373339211,1752953449940,-480.0,0.00019178,2]
[373339212,1752953449948,-480.0,0.00019178,2]
[373339213,1752953449957,-524.3,0.00019178,2]
[373339214,1752953449967,-480.0,0.00019178,2]
[373339215,1752953449976,-480.0,0.00019178,2]
[373339216,1752953449986,-480.0,0.00019178,2]
[373339217,1752953449995,-480.0,0.00019178,2]
[373339218,1752953450004,-480.0,0.00019178,2]
[373339219,1752953450013,-480.0,0.00019178,2]
[373339220,1752953450023,-643.54,0.00019178,2]
[373339221,1752953450036,-480.0,0.00019178,2]
[373339222,1752953450045,-480.0,0.00019178,2]
[373339223,1752953450055,-480.0,0.00019178,2]
[373339224,1752953450064,-480.0,0.00019178,2]
[373339225,1752953450074,-460.0,0.00019178,2]
[373339226,1752953450084,-480.0,0.00019178,2]
[373339227,1752953450093,-480.0,0.00019178,2]
[373339228,1752953450103,-594.29,0.00019178,2]
[373339229,1752953450113,-604.98,0.00019178,2]
[373339230,1752953450122,-480.0,0.00019178,2]
[373339231,1752953450131,-480.0,0.00019178,2]
[373339232,1752953450140,-480.0,0.00019178,2]
[373339233,1752953450150,-500.47,0.00019178,2]
[373339234,1752953450159,-480.0,0.00019178,2]
[373339235,1752953450169,-480.0,0.00019178,2]
[373339236,1752953450179,-480.0,0.00019178,2]
[373339237,1752953450188,-208.42524542,0.00019178,2]
[373339238,1752953450198,-480.0,0.00019178,2]
[373339239,1752953450208,-480.0,0.00019178,2]
[373339240,1752953450218,-2081.56,0.00019178,2]
[373339241,1752953450228,-480.0,0.00019178,2]
[373339242,1752953450237,-555.01,0.00019178,2]
[373339243,1752953450247,-480.0,0.00019178,2]
[373339244,1752953450257,-480.0,0.00019178,2]
[373339245,1752953450267,-480.0,0.00019178,2]
[373339246,1752953450276,-480.0,0.00019178,2]
[373339247,1752953450287,-936.21,0.00019178,2]
[373339248,1752953450296,-480.0,0.00019178,2]
[373339249,1752953450306,-480.0,0.00019178,2]
[373339250,1752953450316,-1063.55,0.00019178,2]
[373339251,1752953450327,-480.0,0.00019178,2]
[373339252,1752953450336,-666.0,0.00019178,2]
[373339253,1752953450345,-1120.7,0.00019178,2]
[373339254,1752953450355,-1547.34,0.00019178,2]
[373339255,1752953450365,-480.0,0.00019178,2]
[373339256,1752953450374,-1228.94,0.00019178,2]
[373339257,1752953450383,-480.0,0.00019178,2]
[373339258,1752953450393,-480.0,0.00019178,2]
[373339259,1752953450402,-1121.68,0.00019178,2]
[373339260,1752953450411,-2267.13,0.00019178,2]
[373339261,1752953450421,-480.0,0.00019178,2]
[373339262,1752953450430,-2505.51,0.00019178,2]
[373339263,1752953450440,-480.0,0.00019178,2]
[373339264,1752953450449,-1776.12,0.00019178,2]
[373339265,1752953450458,-460.0,0.00019178,2]
[373339266,1752953450468,-480.0,0.00019178,2]
[373339267,1752953450477,-683.03,0.00019178,2]
[373339268,1752953450490,-566.12,0.00019178,2]
[373339269,1752953450500,-1122.82,0.00019178,2]
[373339270,1752953450510,-1122.82,0.00019178,2]
[373339271,1752953450519,-562.89,0.00019178,2]
[373339272,1752953450529,-480.0,0.00019178,2]
[373339273,1752953450542,-480.0,0.00019178,2]
[373339274,1752953450551,-2665.88,0.00019178,2]
[373339275,1752953450561,-480.0,0.00019178,2]
[373339276,1752953450570,-549.13,0.00019178,2]
[373339277,1752953450579,-983.41,0.00019178,2]
[373339278,1752953450589,-827.28,0.00019178,2]
[373339279,1752953450598,-480.0,0.00019178,2]
[373339280,1752953450609,-480.0,0.00019178,2]
[373339281,1752953450618,-1220.55,0.00019178,2]
[373339282,1752953450628,-380.0,0.00019178,2]
[373339283,1752953450637,-10669.94,0.00019178,2]
[373339284,1752953450647,-480.0,0.00019178,2]
[373339285,1752953450656,-480.0,0.00019178,2]
[373339286,1752953450665,-1196.53,0.00019178,2]
[373339287,1752953450675,-902.12,0.00019178,2]
[373339288,1752953450687,-480.0,0.00019178,2]
[373339289,1752953450696,-3102.29,0.00019178,2]
[373339290,1752953450707,-480.0,0.00019178,2]
[373339291,1752953450715,-1098.78,0.00019178,2]
[373339292,1752953450725,-3563.54,0.00019178,2]
[373339293,1752953450735,-480.0,0.00019178,2]
[373339294,1752953450744,-550.71,0.00019178,2]
[373339295,1752953450753,-480.0,0.00019178,2]
[373339296,1752953450763,-480.0,0.00019178,2]
[373339297,1752953450772,-2298.43959975,0.00019178,2]
[373339298,1752953451041,250.0,0.00015,2]
[373339299,1752954328819,507.0,0.00014404,2]
[373339300,1752954398683,485.57,0.00013699,2]
[373339302,1752954405150,-396.9302943,0.00016228,4]
[373339303,1752954503990,5000.0,0.00018,120]
[373339306,1752954581834,-5000.0,0.00016,2]
[373339307,1752954581860,-2219.0,0.00016,2]
[373339308,1752954581885,-110.0697057,0.00016228,4]
[373339309,1752954581910,-300.0,0.00016999,2]
[373339310,1752954581934,-5000.0,0.00017,2]
[373339313,1752954631862,-500.0,0.00017304,2]
[373339314,1752954631872,-300.0,0.00017363,2]
[373339315,1752954631882,-250.0,0.00017363,2]
[373339316,1752954631891,-597.0,0.00017431,2]
[373339317,1752954631901,-150.0,0.00017433,2]
[373339319,1752954631911,-150.0,0.00017433,2]
[373339321,1752954631920,-150.0,0.00017433,2]
[373339323,1752954631929,-150.0,0.00017433,2]
[373339325,1752954631938,-151.0,0.0001749,2]
[373339327,1752954631948,-250.0,0.00017491,2]
[373339329,1752954631957,-165.94,0.00017497,2]
[373339331,1752954631967,-150.0,0.000175,2]
[373339332,1752954631977,-150.0,0.0001752,2]
[373339333,1752954631986,-159.92,0.00017582,2]
[373339334,1752954631995,-200.0,0.00017583,2]
[373339335,1752954632004,-593.69,0.00017601,2]
[373339336,1752954632014,-1011.56,0.000177,2]
[373339337,1752954632023,-216.99,0.00017742,2]
[373339338,1752954632032,-213.92,0.00017812,2]
[373339339,1752954632042,-1200.0,0.0001787,2]
[373339340,1752954632051,-422.78,0.00017871,2]
[373339341,1752954632062,-657.49452277,0.00017871,2]
[373339342,1752954632100,-656.18169024,0.00017871,2]
[373339343,1752954632111,-844.60577069,0.00017871,2]
[373339344,1752954632122,-9530.76190603,0.00017871,2]
[373339345,1752954632133,-6737.46611027,0.00017871,2]
[373339346,1752954632143,-1088.18302909,0.000179,2]
[373339347,1752954632153,-666.0,0.00017902,2]
[373339348,1752954632162,-190.0,0.00017928,7]
[373339349,1752954632171,-1088.18302903,0.00017969,2]
[373339350,1752954632181,-1799.05,0.00018012,2]
[373339351,1752954632190,-1000.0,0.00018014,2]
[373339352,1752954632199,-1088.18302903,0.00018038,2]
[373339353,1752954632208,-507.0,0.00018052,6]
[373339354,1752954632218,-1088.18302903,0.00018107,2]
[373339355,1752954632227,-1088.18302903,0.00018176,2]
[373339356,1752954632236,-1088.18302903,0.00018245,2]
[373339357,1752954632246,-176.28,0.00018255,2]
[373339358,1752954632255,-5000.0,0.00018265,2]
[373339359,1752954632264,-1088.18302903,0.00018314,2]
[373339360,1752954632274,-166.42,0.00018329,2]
[373339361,1752954632283,-814.69,0.0001838,2]
[373339362,1752954632292,-1088.18302903,0.00018383,2]
[373339363,1752954632302,-1088.18302903,0.00018452,2]
[373339364,1752954632311,-346.92554585,0.00018487,2]
[373339365,1752954632321,-5531.68398802,0.00018487,2]
[373339366,1752954632330,-207.4,0.00018487,2]
[373339367,1752954632339,-1088.18302903,0.00018521,2]
[373339368,1752954632348,-1088.18302903,0.0001859,2]
[373339369,1752954632357,-1088.18302903,0.00018659,2]
[373339370,1752954632366,-1088.18302903,0.00018728,2]
[373339371,1752954632376,-159.92,0.00018754,2]
[373339372,1752954632385,-150.0,0.0001878,2]
[373339373,1752954632394,-1088.18302903,0.00018797,2]
[373339377,1752954632646,-1088.18302903,0.00018866,2]
[373339378,1752954632661,-1088.18302903,0.00018934,2]